fUSD/lending_fUSD_20251105
["ID","MTS","AMOUNT","RATE_DAILY","PERIOD"]
[393192700,1762308654715,-152.0,0.00038224,7]
[393192701,1762308654725,-152.0,0.00038224,7]
[393192702,1762308654735,-152.0,0.00038224,7]
[393192703,1762308654744,-152.0,0.00038224,7]
[393192704,1762308654753,-152.0,0.00038224,7]
[393192705,1762308654763,-152.0,0.00038224,7]
[393192706,1762308654771,-152.0,0.00038224,7]
[393192707,1762308654780,-301.83268682,0.00038224,7]
[393192708,1762308654790,-152.0,0.00038224,7]
[393192709,1762308654799,-152.0,0.00038224,7]
[393192710,1762308654808,-152.0,0.00038224,7]
[393192711,1762308654817,-152.0,0.00038224,7]
[393192712,1762308654826,-152.0,0.00038224,7]
[393192713,1762308654835,-152.0,0.00038224,7]
[393192714,1762308654845,-152.0,0.00038224,7]
[393192715,1762308654854,-152.0,0.00038224,7]
[393192716,1762308654866,-152.0,0.00038224,7]
[393192717,1762308654880,-152.0,0.00038224,7]
[393192718,1762308654889,-152.0,0.00038224,7]
[393192719,1762308654899,-152.0,0.00038224,7]
[393192720,1762308654908,-152.0,0.00038224,7]
[393192721,1762308654917,-152.0,0.00038224,7]
[393192722,1762308654930,-152.0,0.00038224,7]
[393192723,1762308654940,-152.0,0.00038224,7]
[393192724,1762308654952,-152.0,0.00038224,7]
[393192725,1762308654962,-152.0,0.00038224,7]
[393192726,1762308654971,-152.0,0.00038224,7]
[393192727,1762308654980,-152.0,0.00038224,7]
[393192728,1762308654989,-152.0,0.00038224,7]
[393192729,1762308654998,-152.0,0.00038224,7]
[393192730,1762308655007,-152.0,0.00038224,7]
[393192731,1762308655018,-152.0,0.00038224,7]
[393192732,1762308655027,-152.0,0.00038224,7]
[393192733,1762308655036,-152.0,0.00038224,7]
[393192734,1762308655048,-152.0,0.00038224,7]
[393192735,1762308655057,-152.0,0.00038224,7]
[393192736,1762308655067,-152.0,0.00038224,7]
[393192737,1762308655078,-152.0,0.00038224,7]
[393192738,1762308655087,-152.0,0.00038224,7]
[393192739,1762308655096,-152.0,0.00038224,7]
[393192740,1762308655105,-211.60209901,0.00038224,7]
[393192741,1762308655115,-151.0,0.00038224,31]
[393192742,1762308655124,-151.0,0.00038224,31]
[393192743,1762308655133,-330.136094,0.00038224,31]
[393192744,1762308655143,-330.136094,0.00038224,31]
[393192745,1762308655152,-330.136094,0.00038224,31]
[393192746,1762308655161,-330.136084,0.00038224,31]
[393192747,1762308655171,-217.205769,0.00038224,31]
[393192748,1762308655179,-217.205769,0.00038224,31]
[393192749,1762308655188,-217.205769,0.00038224,31]
[393192750,1762308655197,-217.205772,0.00038224,31]
[393192751,1762308655207,-151.0,0.00038224,31]
[393192752,1762308655216,-151.0,0.00038224,31]
[393192753,1762308655225,-500.0,0.00038239,120]
[393192754,1762308655235,-424.0,0.00038247,5]
[393192755,1762308655245,-1430.0,0.00038247,30]
[393192756,1762308655254,-957.53176,0.0003825,2]
[393192757,1762308655263,-159.37883789,0.00038253,30]
[393192758,1762308655272,-1901.92314782,0.00038254,2]
[393192759,1762308655281,-751.18721917,0.0003826,120]
[393192760,1762308655293,-600.0,0.0003826,30]
[393192761,1762308655303,-151.0,0.00038263,7]
[393192762,1762308655312,-150.31737787,0.00038263,10]
[393192763,1762308655321,-562.28,0.00038263,120]
[393192764,1762308655332,-562.28,0.00038263,120]
[393192765,1762308655341,-500.0,0.00038263,120]
[393192766,1762308655350,-500.0,0.00038263,120]
[393192767,1762308655360,-500.0,0.00038263,2]
[393192768,1762308655373,-500.0,0.00038263,2]
[393192769,1762308655382,-151.0,0.00038264,31]
[393192770,1762308655392,-151.0,0.00038264,14]
[393192771,1762308655401,-151.0,0.00038264,14]
[393192772,1762308655411,-151.0,0.00038264,31]
[393192773,1762308655420,-151.0,0.00038264,31]
[393192774,1762308655430,-500.0,0.00038264,14]
[393192775,1762308655439,-500.0,0.00038264,14]
[393192776,1762308655448,-500.0,0.00038264,14]
[393192777,1762308655458,-500.0,0.00038264,14]
[393192778,1762308655468,-500.0,0.00038264,14]
[393192779,1762308655478,-500.0,0.00038264,14]
[393192780,1762308655488,-500.0,0.00038264,14]
[393192781,1762308655497,-500.0,0.00038264,14]
[393192782,1762308655507,-151.0,0.00038264,31]
[393192783,1762308655517,-151.0,0.00038264,31]
[393192784,1762308655526,-407.245394,0.00038264,31]
[393192785,1762308655536,-151.0,0.00038264,31]
[393192786,1762308655546,-407.245394,0.00038264,31]
[393192787,1762308655555,-151.0,0.00038264,31]
[393192788,1762308655565,-407.245394,0.00038264,31]
[393192789,1762308655574,-151.0,0.00038264,31]
[393192790,1762308655583,-407.245386,0.00038264,31]
[393192791,1762308655593,-151.0,0.00038264,15]
[393192792,1762308655604,-151.0,0.00038264,15]
[393192793,1762308655615,-249.631877,0.00038264,31]
[393192794,1762308655625,-151.0,0.00038264,31]
[393192795,1762308655635,-151.0,0.00038264,31]
[393192796,1762308655645,-151.0,0.00038264,31]
[393192797,1762308655655,-151.0,0.00038264,31]
[393192798,1762308655664,-432.579819,0.00038264,31]
[393192799,1762308655674,-432.579819,0.00038264,31]
[393192800,1762308655684,-432.579819,0.00038264,31]
[393192801,1762308655694,-432.579811,0.00038264,31]
[393192802,1762308655703,-151.0,0.00038264,31]
[393192803,1762308655713,-151.0,0.00038264,31]
[393192804,1762308655722,-151.0,0.00038264,31]
[393192805,1762308655732,-151.0,0.00038264,31]
[393192806,1762308655741,-151.0,0.00038264,31]
[393192807,1762308655751,-568.364366,0.00038264,31]
[393192808,1762308655760,-151.0,0.00038264,31]
[393192809,1762308655769,-568.364366,0.00038264,31]
[393192810,1762308655779,-500.0,0.00038264,14]
[393192811,1762308655788,-500.0,0.00038264,14]
[393192812,1762308655797,-151.0,0.00038264,31]
[393192813,1762308655806,-500.0,0.00038264,14]
[393192814,1762308655816,-500.0,0.00038264,14]
[393192815,1762308655827,-500.0,0.00038264,14]
[393192816,1762308655837,-568.364366,0.00038264,31]
[393192817,1762308655848,-500.0,0.00038264,14]
[393192818,1762308655857,-151.0,0.00038264,31]
[393192819,1762308655869,-460.2663091,0.00038264,14]
[393192820,1762308655878,-151.0,0.00038264,31]
[393192821,1762308655887,-151.0,0.00038264,31]
[393192822,1762308655897,-568.364367,0.00038264,31]
[393192823,1762308655908,-151.0,0.00038264,31]
[393192824,1762308655917,-151.0,0.00038264,31]
[393192825,1762308655926,-151.0,0.00038264,31]
[393192826,1762308655936,-151.0,0.00038264,31]
[393192827,1762308655945,-151.0,0.00038264,31]
[393192828,1762308655954,-151.0,0.00038264,31]
[393192829,1762308655964,-151.0,0.00038264,31]
[393192830,1762308655973,-151.0,0.00038264,31]
[393192831,1762308655983,-151.0,0.00038264,31]
[393192832,1762308655992,-239.252496,0.00038264,30]
[393192833,1762308656002,-252.467454,0.00038264,31]
[393192834,1762308656011,-252.467454,0.00038264,31]
[393192835,1762308656020,-151.0,0.00038264,31]
[393192836,1762308656030,-252.467454,0.00038264,31]
[393192837,1762308656039,-151.0,0.00038264,31]
[393192838,1762308656048,-252.46746332,0.00038264,31]
[393192839,1762308656058,-151.0,0.00038264,31]
[393192840,1762308656068,-151.0,0.00038264,31]
[393192841,1762308656077,-151.0,0.00038264,31]
[393192842,1762308656087,-154.882133,0.00038264,31]
[393192843,1762308656097,-151.0,0.00038264,31]
[393192844,1762308656107,-151.0,0.00038264,31]
[393192845,1762308656118,-150674.98090002,0.00038264,2]
[393192846,1762308656127,-150674.98090002,0.00038264,2]
[393192847,1762308656137,-150674.98090002,0.00038264,2]
[393192848,1762308656146,-533.0499519,0.00038266,30]
[393192849,1762308656155,-1901.92314782,0.00038267,2]
[393192850,1762308656165,-286.29911607,0.00038267,2]
[393192851,1762308656174,-286.29911607,0.00038267,2]
[393192852,1762308656183,-500.0,0.0003827,2]
[393192853,1762308656192,-1000.0,0.0003827,2]
[393192854,1762308656201,-1000.0,0.0003827,2]
[393192855,1762308656211,-500.0,0.0003827,2]
[393192856,1762308656220,-500.0,0.0003827,2]
[393192857,1762308656229,-1000.0,0.0003827,2]
[393192858,1762308656239,-800.0,0.0003827,2]
[393192859,1762308656248,-1000.0,0.0003827,2]
[393192860,1762308656258,-1500.0,0.0003827,30]
[393192861,1762308656268,-562.28,0.00038272,120]
[393192862,1762308656277,-562.28,0.00038272,120]
[393192863,1762308656287,-562.28,0.00038272,120]
[393192864,1762308656300,-562.28,0.00038272,120]
[393192865,1762308656310,-562.28,0.00038272,120]
[393192866,1762308656319,-562.28,0.00038272,120]
[393192867,1762308656328,-562.28,0.00038272,120]
[393192868,1762308656338,-562.28,0.00038272,120]
[393192869,1762308656348,-562.28,0.00038272,120]
[393192870,1762308656357,-562.28,0.00038272,120]
[393192871,1762308656369,-562.28,0.00038272,120]
[393192872,1762308656379,-562.28,0.00038272,120]
[393192873,1762308656389,-562.28,0.00038272,120]
[393192874,1762308656399,-562.28,0.00038272,120]
[393192875,1762308656408,-562.28,0.00038272,120]
[393192876,1762308656418,-562.28,0.00038272,120]
[393192877,1762308656427,-562.28,0.00038272,120]
[393192878,1762308656437,-562.28,0.00038272,120]
[393192879,1762308656447,-562.28,0.00038272,120]
[393192880,1762308656457,-562.50175862,0.00038272,120]
[393192881,1762308656467,-500.0,0.00038272,120]
[393192882,1762308656476,-151.0,0.00038273,31]
[393192883,1762308656488,-180.686502,0.00038273,31]
[393192884,1762308656498,-151.0,0.00038273,14]
[393192885,1762308656507,-151.0,0.00038273,14]
[393192886,1762308656517,-151.0,0.00038273,14]
[393192887,1762308656526,-151.0,0.00038273,14]
[393192888,1762308656536,-151.0,0.00038273,14]
[393192889,1762308656545,-151.0,0.00038273,14]
[393192890,1762308656554,-151.50657,0.00038273,31]
[393192891,1762308656563,-151.0,0.00038273,31]
[393192892,1762308656574,-151.0,0.00038273,31]
[393192893,1762308656583,-2417.69937389,0.00038273,2]
[393192894,1762308656592,-150.0,0.00038274,2]
[393192895,1762308656602,-150.0,0.00038274,2]
[393192896,1762308656611,-150.0,0.00038274,2]
[393192897,1762308656620,-150.0,0.00038274,2]
[393192898,1762308656630,-150.0,0.00038274,2]
[393192899,1762308656639,-169.01,0.00038274,2]
[393192900,1762308656649,-176.88,0.00038274,2]
[393192901,1762308656658,-169.01,0.00038274,2]
[393192902,1762308656667,-150.0,0.00038274,2]
[393192903,1762308656677,-176.88,0.00038274,2]
[393192904,1762308656687,-169.01,0.00038274,2]
[393192905,1762308656696,-169.01,0.00038274,2]
[393192906,1762308656705,-150.0,0.00038274,2]
[393192907,1762308656714,-176.88,0.00038274,2]
[393192908,1762308656724,-169.01,0.00038274,2]
[393192909,1762308656733,-150.0,0.00038274,2]
[393192910,1762308656742,-176.88,0.00038274,2]
[393192911,1762308656751,-150.0,0.00038274,2]
[393192912,1762308656760,-176.88,0.00038274,2]
[393192913,1762308656769,-169.01,0.00038274,2]
[393192914,1762308656779,-169.01,0.00038274,2]
[393192915,1762308656788,-176.88,0.00038274,2]
[393192916,1762308656797,-150.0,0.00038274,2]
[393192917,1762308656807,-150.0,0.00038274,2]
[393192918,1762308656816,-176.88,0.00038274,2]
[393192919,1762308656825,-415.63,0.00038274,2]
[393192920,1762308656834,-169.01,0.00038274,2]
[393192921,1762308656843,-698.44,0.00038274,2]
[393192922,1762308656852,-169.01,0.00038274,2]
[393192923,1762308656861,-415.63,0.00038274,2]
[393192924,1762308656872,-176.88,0.00038274,2]
[393192925,1762308656881,-698.44,0.00038274,2]
[393192926,1762308656891,-150.0,0.00038274,2]
[393192927,1762308656900,-698.44,0.00038274,2]
[393192928,1762308656909,-150.0,0.00038274,2]
[393192929,1762308656920,-415.63,0.00038274,2]
[393192930,1762308656930,-176.88,0.00038274,2]
[393192931,1762308656940,-169.01,0.00038274,2]
[393192932,1762308656949,-477.03,0.00038274,2]
[393192933,1762308656959,-169.01,0.00038274,2]
[393192934,1762308656968,-477.03,0.00038274,2]
[393192935,1762308656978,-169.01,0.00038274,2]
[393192936,1762308656987,-477.03,0.00038274,2]
[393192937,1762308656996,-169.01,0.00038274,2]
[393192938,1762308657006,-300.78,0.00038274,2]
[393192939,1762308657015,-477.03,0.00038274,2]
[393192940,1762308657025,-150.0,0.00038274,2]
[393192941,1762308657034,-169.01,0.00038274,2]
[393192942,1762308657044,-169.01,0.00038274,2]
[393192943,1762308657054,-477.03,0.00038274,2]
[393192944,1762308657063,-169.01,0.00038274,2]
[393192945,1762308657072,-169.01,0.00038274,2]
[393192946,1762308657082,-169.01,0.00038274,2]
[393192947,1762308657092,-169.01,0.00038274,2]
[393192948,1762308657101,-169.01,0.00038274,2]
[393192949,1762308657111,-169.01,0.00038274,2]
[393192950,1762308657125,-169.01,0.00038274,2]
[393192951,1762308657134,-169.01,0.00038274,2]
[393192952,1762308657144,-311.47,0.00038274,2]
[393192953,1762308657153,-230.04902447,0.00038275,120]
[393192954,1762308657162,-500.0,0.00038276,2]
[393192955,1762308657171,-500.0,0.00038276,2]
[393192956,1762308657181,-641.29577913,0.00038276,2]
[393192957,1762308657191,-23842.08846061,0.00038276,31]
[393192958,1762308657200,-192.0,0.00038277,30]
[393192959,1762308657211,-495.67567222,0.00038277,30]
[393192960,1762308657220,-609732.41825619,0.00038277,7]
[393192961,1762308657236,-1014.3736564,0.00038277,7]
[393192962,1762308657253,-151.0,0.0003435,31]
[393192963,1762308657263,-7977.8,0.00038277,7]
[393192964,1762308657397,-495.68566525,0.00026765,2]
[393192965,1762308657407,-112.19291844,0.00028884,31]
[393192966,1762308657424,-38.80708156,0.00028884,31]
[393192967,1762308657435,-151.0,0.00028884,31]
[393192968,1762308657445,-151.0,0.00032852,31]
[393192969,1762308657455,-4.39398207,0.00032852,31]
[393192970,1762308657524,-648.1749702,0.00031548,2]
[393192971,1762308657536,-539.8250298,0.00031548,2]
[393192972,1762308657546,-146.60601793,0.00032852,31]
[393192973,1762308657556,-5195.66,0.00032876,2]
[393192974,1762308657565,-5195.66,0.00032876,2]
[393192975,1762308657575,-5195.66,0.00032876,2]
[393192976,1762308657585,-5195.66,0.00032876,2]
[393192977,1762308657595,-5195.66,0.00032876,2]
[393192978,1762308657605,-5195.76942673,0.00032876,2]
[393192979,1762308657783,-213.961143,0.0003435,31]
[393192980,1762308657792,-151.0,0.0003435,31]
[393192981,1762308657802,-151.0,0.0003435,31]
[393192982,1762308657811,-419.36622364,0.00036932,2]
[393192983,1762308657826,-495.68566525,0.00029047,2]
[393192984,1762308657835,-279.07377636,0.00036932,2]
[393192985,1762308657844,-176.88,0.00037123,2]
[393192986,1762308657853,-169.01,0.00037123,2]
[393192987,1762308657863,-150.0,0.00037123,2]
[393192988,1762308657872,-415.63,0.00037123,2]
[393192989,1762308657882,-150.0,0.00037452,2]
[393192990,1762308657891,-549.09,0.00037656,2]
[393192991,1762308657900,-151.0,0.00038077,31]
[393192992,1762308657909,-151.0,0.00038077,31]
[393192993,1762308657919,-151.0,0.00038077,31]
[393192994,1762308657928,-467.75995131,0.00038177,7]
[393192995,1762308657937,-151.0,0.00038264,31]
[393192996,1762308657947,-151.0,0.00038264,31]
[393192997,1762308657956,-13184.51169109,0.00038277,7]
[393192998,1762308657967,-10717.50612844,0.00038277,7]
[393192999,1762308657984,-623.35478099,0.00034548,2]
[393193000,1762308657995,-406.71439768,0.00034548,2]
[393193001,1762308658006,-157.93082133,0.00034548,2]
[393193002,1762308658015,-14573.65682233,0.00038277,7]
[393193003,1762308658026,-6561.23923773,0.00038277,7]
[393193006,1762308722927,538.86,0.00027525,120]
[393193007,1762308723005,538.86,0.00029441,120]
[393193009,1762308789749,5659.46,0.00014757,2]
[393193010,1762308789954,4340.55,0.00015503,2]
[393193011,1762308789981,1318.91,0.00015503,2]
[393193012,1762308790158,5659.46,0.00016249,2]
[393193013,1762308790372,3021.64,0.00016996,2]
[393193014,1762308790396,2637.82,0.00016996,2]
[393193015,1762308790569,5659.46,0.00017742,2]
[393193016,1762308798933,-195.84611153,0.00018488,2]
[393193018,1762308830138,192.0,0.00030137,120]
[393193023,1762308912700,1000.0,0.0003,120]
[393193029,1762309115213,396.69,0.00013699,2]
[393193033,1762309232283,158.0,0.000301,120]
[393193034,1762309233529,158.0,0.000301,120]
[393193036,1762309250145,500.0,0.00027432,120]
[393193042,1762309391569,1007.01,0.00026281,120]
[393193043,1762309391790,1007.01,0.00028909,120]
[393193044,1762309421877,187.0,0.00038276,120]
[393193045,1762309457258,168.22031138,0.00038276,60]
[393193047,1762309505655,-189.94426754,0.00018388,2]
[393193048,1762309505681,-506.32012371,0.00018488,2]
[393193049,1762309520632,-237.21898313,0.00018,2]
[393193051,1762309540813,156.0,0.00030136,120]
[393193052,1762309542897,151.22711027,0.00038276,120]
[393193055,1762309561182,300.0,0.00017999,2]
[393193057,1762309566185,641.36242204,0.00038276,30]
[393193059,1762309595290,646.54325847,0.00017999,2]
[393193060,1762309595322,500.0,0.00017999,2]
[393193061,1762309595349,500.0,0.00017999,2]
[393193062,1762309595385,500.0,0.00017999,2]
[393193063,1762309595413,500.0,0.00017999,2]
[393193064,1762309595444,500.0,0.00017999,2]
[393193065,1762309595478,500.0,0.00017999,2]
[393193066,1762309595506,500.0,0.00017999,2]
[393193067,1762309595539,500.0,0.00017999,2]
[393193068,1762309595573,500.0,0.00017999,2]
[393193069,1762309595600,500.0,0.00017999,2]
[393193070,1762309595639,215.21044493,0.00017999,2]
[393193071,1762309595672,500.0,0.00017999,2]
[393193072,1762309595705,500.0,0.00017999,2]
[393193073,1762309595737,500.0,0.00017999,2]
[393193074,1762309595763,203.86801993,0.00017999,2]
[393193075,1762309595796,500.0,0.00017999,2]
[393193076,1762309595839,500.0,0.00017999,2]
[393193077,1762309595872,500.0,0.00017999,2]
[393193078,1762309595910,500.0,0.00017999,2]
[393193079,1762309595942,434.38827667,0.00017999,2]
[393193080,1762309595969,65.61172333,0.00017999,2]
[393193081,1762309596004,500.0,0.00017999,2]
[393193082,1762309596035,500.0,0.00017999,2]
[393193083,1762309596068,500.0,0.00017999,2]
[393193084,1762309596107,500.0,0.00017999,2]
[393193085,1762309596141,500.0,0.00017999,2]
[393193087,1762309614196,7434.39827667,0.000162,5]
[393193088,1762309614221,10000.01,0.000162,5]
[393193089,1762309614245,10000.01,0.000162,5]
[393193090,1762309614269,10000.01,0.000162,5]
[393193091,1762309614297,4798.97546448,0.000162,5]
[393193092,1762309623399,-550.0,0.00017999,2]
[393193093,1762309623430,-300.0,0.00017999,2]
[393193094,1762309624834,152.81273472,0.00038276,120]
[393193095,1762309633863,157.45,0.0001799,3]
[393193096,1762309655579,-496.99827417,0.00018,2]
[393193097,1762309660493,1200.0,0.00017999,2]
[393193099,1762309673928,-332.5342894,0.00018,2]
[393193101,1762309676885,-300.0,0.00018,2]
[393193104,1762309681573,300.0,0.00017999,2]
[393193109,1762309704241,1399.16912175,0.00038282,30]
[393193119,1762309741615,300.0,0.00017999,2]
[393193122,1762309778772,1110.85,0.0001704,2]
[393193125,1762309801212,300.0,0.00017999,2]
[393193126,1762309801258,300.0,0.00017999,2]
[393193127,1762309801488,1200.0,0.00017999,2]
[393193139,1762309826742,689.67894,0.00038282,60]
[393193140,1762309827036,689.67894,0.00038282,60]
[393193141,1762309827330,689.67894,0.00038282,60]
[393193142,1762309827656,689.67894,0.00038282,60]
[393193143,1762309827953,689.67894,0.00038282,60]
[393193163,1762309832079,-348.05630699,0.00018,2]
[393193164,1762309832135,-2853.95310011,0.00018,2]
[393193165,1762309832189,-660.1050659,0.00018,2]
[393193166,1762309832200,-25655.85271904,0.00018,2]
[393193167,1762309832348,-701.73541056,0.00018,2]
[393193168,1762309832359,-518.38854276,0.00018,2]
[393193169,1762309833948,-236.66510407,0.00018,2]
[393193170,1762309834039,-412.60310062,0.00018,2]
[393193173,1762309838024,-4768.74562044,0.00018,2]
[393193174,1762309838036,-35560.22275191,0.00018,2]
[393193175,1762309838049,-17823.1042752,0.00018,2]
[393193176,1762309838061,-474.20734483,0.00018,2]
[393193177,1762309838076,-1640.29602292,0.00018,2]
[393193178,1762309838134,-214964.23238684,0.00018,2]
[393193179,1762309838146,-407.38179541,0.00018144,2]
[393193180,1762309838156,-8197.58250122,0.00018288,2]
[393193181,1762309838169,-371.76424898,0.00018388,2]
[393193182,1762309838179,-4957.29376476,0.00018488,2]
[393193183,1762309838190,-158.5068257,0.00018488,2]
[393193184,1762309838200,-158.5068257,0.00018488,2]
[393193185,1762309838211,-158.5068257,0.00018488,2]
[393193186,1762309838221,-5659.46,0.00019234,2]
[393193187,1762309838231,-1350.0,0.00019639,2]
[393193188,1762309838241,-420.0,0.00019639,2]
[393193189,1762309838251,-420.0,0.00019639,2]
[393193190,1762309838261,-1680.0,0.00019735,2]
[393193191,1762309838272,-500.0,0.0001978,2]
[393193192,1762309838282,-195.0,0.000198,2]
[393193193,1762309838292,-300.0,0.000198,2]
[393193195,1762309838302,-1000.0,0.00019893,2]
[393193197,1762309838312,-12676.58803517,0.00019896,2]
[393193199,1762309838322,-244.68735903,0.00019973,2]
[393193201,1762309838332,-500.0,0.00019973,2]
[393193202,1762309838342,-605.78717603,0.00019973,2]
[393193203,1762309838352,-540.14213884,0.00019973,2]
[393193204,1762309838362,-501.65143851,0.00019973,2]
[393193205,1762309838375,-171.51478938,0.00019973,2]
[393193206,1762309838385,-170.5355937,0.00019973,2]
[393193207,1762309838395,-500.0,0.00019973,2]
[393193208,1762309838405,-500.0,0.00019973,2]
[393193209,1762309838416,-500.0,0.00019973,2]
[393193210,1762309838426,-500.0,0.00019973,2]
[393193211,1762309838436,-500.0,0.00019973,2]
[393193212,1762309838446,-500.0,0.00019973,2]
[393193213,1762309838456,-406.62378491,0.00019973,2]
[393193214,1762309838467,-176.54873584,0.00019973,2]
[393193215,1762309838477,-500.0,0.00019973,2]
[393193216,1762309838487,-507.55313772,0.00019973,2]
[393193217,1762309838496,-500.0,0.00019973,2]
[393193218,1762309838506,-500.0,0.00019973,2]
[393193219,1762309838516,-5659.46,0.00019981,2]
[393193220,1762309838527,-150.99,0.00019996,2]
[393193221,1762309838538,-9999.99,0.00019996,2]
[393193222,1762309838548,-12025.44,0.00019996,2]
[393193223,1762309838558,-3577.32,0.00019996,2]
[393193224,1762309838572,-1719.15,0.00019996,2]
[393193225,1762309838583,-1589.6,0.00019996,2]
[393193226,1762309838593,-499.99,0.00019996,2]
[393193227,1762309838603,-9999.99,0.00019996,2]
[393193228,1762309838613,-396.69,0.00020187,2]
[393193229,1762309838624,-281.38814156,0.00020353,2]
[393193230,1762309838638,-6018.04159884,0.00020439,2]
[393193231,1762309838648,-8197.5825012,0.00020498,2]
[393193232,1762309838658,-166.66,0.00020499,2]
[393193233,1762309838668,-1000.0,0.00020521,2]
[393193234,1762309838679,-1000.0,0.00020521,2]
[393193235,1762309838689,-501.70104334,0.00020521,2]
[393193236,1762309838700,-1000.0,0.00020521,2]
[393193237,1762309838712,-1000.0,0.00020521,2]
[393193238,1762309838722,-485.96504137,0.00020521,2]
[393193239,1762309838733,-1000.0,0.00020521,2]
[393193240,1762309838743,-449.20676552,0.00020521,2]
[393193241,1762309838753,-1000.0,0.00020521,2]
[393193242,1762309838767,-269.91,0.0002063,2]
[393193243,1762309838779,-5659.46,0.00020727,2]
[393193244,1762309838790,-465.17788795,0.00020859,2]
[393193245,1762309838801,-6765.34,0.00020959,2]
[393193246,1762309838812,-5794.0,0.00020959,2]
[393193247,1762309838822,-150.99,0.00020959,2]
[393193248,1762309838834,-9999.99,0.00020959,2]
[393193249,1762309838845,-9999.99,0.00020959,2]
[393193250,1762309838856,-50988.42,0.00020959,2]
[393193251,1762309838867,-299.99,0.00020959,7]
[393193252,1762309838878,-999.99,0.00020959,2]
[393193253,1762309838889,-8300.35,0.00020959,2]
[393193254,1762309838900,-1359.07,0.00020959,2]
[393193255,1762309838910,-9999.99,0.00020959,2]
[393193256,1762309838921,-500.0,0.00020973,2]
[393193257,1762309838932,-504.25926664,0.00020973,2]
[393193258,1762309838943,-500.0,0.00020973,2]
[393193259,1762309838954,-500.0,0.00020973,2]
[393193260,1762309838969,-500.0,0.00020973,2]
[393193261,1762309838979,-500.0,0.00020973,2]
[393193262,1762309838990,-161.27255273,0.00020973,2]
[393193263,1762309839000,-160.29212742,0.00020973,2]
[393193264,1762309839011,-500.0,0.00020973,2]
[393193265,1762309839022,-500.0,0.00020973,2]
[393193266,1762309839032,-500.0,0.00020973,2]
[393193267,1762309839042,-500.0,0.00020973,2]
[393193268,1762309839052,-500.0,0.00020973,2]
[393193269,1762309839062,-500.0,0.00020973,2]
[393193270,1762309839073,-1007.01,0.00021025,2]
[393193271,1762309839083,-419.42840214,0.00021068,2]
[393193272,1762309839094,-1503.00914392,0.00021068,2]
[393193273,1762309839104,-1500.0,0.00021068,2]
[393193274,1762309839114,-1328.7490067,0.00021068,2]
[393193275,1762309839124,-511.68204989,0.00021068,2]
[393193276,1762309839134,-1500.0,0.00021068,2]
[393193277,1762309839144,-200.0,0.00021127,2]
[393193278,1762309839154,-166.66,0.00021176,2]
[393193279,1762309839164,-371.76424894,0.00021216,2]
[393193280,1762309839174,-151.0,0.00021232,2]
[393193281,1762309839184,-152623.25,0.00021235,2]
[393193282,1762309839195,-150.0,0.00021255,2]
[393193283,1762309839204,-503.15659393,0.00021273,2]
[393193284,1762309839215,-500.0,0.00021273,2]
[393193285,1762309839226,-150.0,0.00021273,2]